bitfinex-derivatives/quotes_ETHF0:USTF0_20250528
["timestamp","ask_amount","ask_price","bid_price","bid_amount"]
[1748438507196,1.9352,2664.0,2663.9,0.75041]
[1748438508098,1.9352,2664.0,2663.9,2.02431]
[1748438508296,2.68558,2664.0,2663.9,2.02431]
[1748438508494,1.9352,2664.0,2663.9,2.02431]
[1748438508993,2.68558,2664.0,2663.9,2.02431]
[1748438510599,2.68558,2664.0,2663.9,0.75041]
[1748438512700,0.75041,2663.9,2663.8,2.12681179]
[1748438513203,2.05641,2663.9,2663.8,2.12681179]
[1748438516795,1.306,2663.9,2663.8,2.12681179]
[1748438517303,2.05641,2663.9,2663.8,2.12681179]
[1748438519811,2.05641,2663.9,2663.8,0.75041]
[1748438520001,2.05641,2663.9,2663.8,1.37640179]
[1748438520202,2.05641,2663.9,2663.8,0.75044]
[1748438520403,0.75044,2663.8,2663.7,2.13247735]
[1748438520607,5.19814,2663.8,2663.7,0.00562556]
[1748438524014,3.2078,2663.8,2663.7,0.75608556]
[1748438524215,3.95824,2663.8,2663.7,0.00562556]
[1748438524916,7.64624,2663.8,2663.7,0.00562556]
[1748438528117,12.64624,2663.8,2663.7,0.00562556]
[1748438533518,7.64624,2663.8,2663.7,0.00562556]
[1748438535324,48.44624,2663.8,2663.7,0.00562556]
[1748438536019,44.75824,2663.8,2663.7,0.00562556]
[1748438536222,3.2078,2663.8,2663.7,0.75608556]
[1748438538423,3.2078,2663.8,2663.7,2.07938556]
[1748438539925,0.75041,2663.9,2663.8,0.75044]
[1748438540124,0.75041,2663.9,2663.8,2.07374]
[1748438540329,0.75041,2663.9,2663.8,2.70624]
[1748438540823,0.7504,2664.0,2663.9,0.75038]
[1748438541023,3.95817,2664.1,2664.0,0.75038]
[1748438541224,0.75037,2664.1,2664.0,0.75038]
[1748438541411,0.75037,2664.1,2664.0,1.98418]
[1748438542126,3.2078,2664.1,2663.7,1.38202735]
[1748438542326,0.75043,2663.9,2663.8,0.75041]
[1748438543427,0.75037,2664.1,2664.0,0.75038]
[1748438544227,0.75596556,2664.2,2664.1,0.75035]
[1748438544429,0.00562556,2664.2,2664.1,0.75035]
[1748438544930,0.75594556,2664.2,2664.1,0.75035]
[1748438545530,0.00562556,2664.2,2664.1,0.75035]
[1748438545832,0.00562556,2664.2,2664.1,1.36435]
[1748438546432,0.00562556,2664.2,2664.1,2.74075179]
[1748438546629,0.00562556,2664.2,2664.1,7.74075179]
[1748438546929,0.00562556,2664.2,2664.1,6.36435]
[1748438547430,0.00562556,2664.2,2664.1,9.57215]
[1748438547633,0.00562556,2664.2,2664.1,4.57215]
[1748438547836,0.00562556,2664.2,2664.1,2.74039502]
[1748438548428,0.00562556,2664.2,2664.1,1.36435]
[1748438549326,0.75035,2664.1,2664.0,4.10051502]
[1748438549534,0.75035,2664.1,2664.0,1.3443]
[1748438549931,2.00015,2664.1,2664.0,1.3443]
[1748438550835,3.88342556,2664.2,2664.1,0.75035]
[1748438551030,0.00562556,2664.2,2664.1,0.75035]
[1748438551229,0.75594556,2664.2,2664.1,0.75035]
[1748438551833,0.75035,2664.1,2664.0,2.09466]
[1748438552734,0.75596556,2664.2,2664.1,0.75035]
[1748438553333,0.75035,2664.1,2664.0,2.09467]
[1748438553531,0.75035,2664.1,2664.0,1.3443]
[1748438556239,0.75035,2664.1,2664.0,2.09468]
[1748438556537,0.75035,2664.1,2664.0,1.3443]
[1748438557444,0.75041,2663.9,2663.8,0.75041]
[1748438557737,0.75041,2663.9,2663.8,2.09661]
[1748438557937,0.6607,2664.0,2663.9,0.75041]
[1748438557938,0.7504,2664.0,2663.9,0.75041]
[1748438558131,0.7504,2664.0,2663.9,2.09661]
[1748438558733,0.7504,2664.0,2663.9,1.3462]
[1748438560340,0.75044,2663.8,2663.7,0.00562556]
[1748438561041,2.03534,2663.8,2663.7,0.00562556]
[1748438563739,2.03534,2663.8,2663.7,0.75608556]
[1748438566141,2.03534,2663.8,2663.7,0.00562556]
[1748438566344,2.03534,2663.8,2663.7,0.75608556]
[1748438566533,2.03534,2663.8,2663.7,0.00562556]
[1748438567240,2.03534,2663.8,2663.7,0.75608556]
[1748438567739,2.03534,2663.8,2663.7,0.00562556]
[1748438570047,2.03534,2663.8,2663.7,0.75608556]
[1748438570345,2.03534,2663.8,2663.7,1.99358556]
[1748438574346,2.03534,2663.8,2663.7,1.24312556]
[1748438576046,0.75043,2663.9,2663.8,0.75041]
[1748438576245,0.75044,2663.8,2663.7,1.99357556]
[1748438576442,0.75044,2663.8,2663.7,1.24312556]
[1748438576844,0.75044,2663.8,2663.7,1.99358556]
[1748438577243,0.75044,2663.8,2663.7,1.24312556]
[1748438580253,0.75044,2663.8,2663.7,0.00562556]
[1748438581463,1.99194,2663.8,2663.7,0.00562556]
[1748438582246,1.99194,2663.8,2663.7,1.29262556]
[1748438582445,0.75044,2663.8,2663.7,1.29262556]
[1748438583854,0.75044,2663.8,2663.7,2.04308556]
[1748438585354,3.2078,2664.0,2663.9,0.75041]
[1748438585650,0.00562556,2664.2,2663.8,3.19418]
[1748438585854,0.75035,2664.1,2664.0,2.13058418]
[1748438586053,0.75035,2664.1,2664.0,3.44868418]
[1748438586756,0.75035,2664.1,2664.0,2.69833418]
[1748438586955,0.75035,2664.1,2664.0,3.44871418]
[1748438591960,0.00562556,2664.2,2664.1,0.75035]
[1748438592156,0.00562556,2664.2,2664.1,2.65775]
[1748438592355,0.75594556,2664.2,2664.1,2.65775]
[1748438593060,0.75594556,2664.2,2664.1,4.03606303]
[1748438593351,0.00562556,2664.2,2664.1,4.03606303]
[1748438593557,0.00562556,2664.2,2664.1,2.65775]
[1748438594958,0.75594556,2664.2,2664.1,4.03563583]
[1748438595551,3.96374556,2664.2,2664.1,1.37788583]
[1748438595859,0.75038,2664.0,2663.9,1.37788583]
[1748438596463,1.99778,2664.0,2663.9,1.37788583]
[1748438596656,0.75044,2663.8,2663.7,0.00562556]
[1748438597356,1.99784,2663.8,2663.7,0.00562556]
[1748438597557,1.99784,2663.8,2663.7,0.75608556]
[1748438597961,1.99784,2663.8,2663.7,0.00562556]
[1748438599665,6.99784,2663.8,2663.7,0.00562556]
[1748438599866,0.7506,2663.2,2663.1,3.42479583]
[1748438600365,0.7506,2663.2,2663.1,3.42480583]
[1748438600664,6.2615,2663.4,2663.1,2.67418583]
[1748438600665,1.288,2663.3,2663.1,2.67418583]
[1748438600860,1.288,2663.3,2663.2,0.7506]
[1748438601063,1.2905,2663.4,2663.3,0.75058]
[1748438601266,3.2078,2663.6,2663.5,0.75052]
[1748438601467,40.8,2663.8,2663.7,0.75046]
[1748438602267,0.75041,2663.9,2663.8,0.75043]
[1748438602464,4.43441,2663.9,2663.8,0.75043]
[1748438602965,4.4983,2664.1,2664.0,0.75038]
[1748438603865,5.24865,2664.1,2664.0,0.75038]
[1748438606670,0.75038,2664.0,2663.9,2.02338]
[1748438607568,2.10268,2664.0,2663.9,2.02338]
[1748438608972,0.75038,2664.0,2663.9,2.02338]
[1748438609269,4.4983,2664.1,2664.0,0.75038]
[1748438609460,4.4983,2664.1,2664.0,1.99038]
[1748438609664,3.2078,2664.1,2664.0,1.99038]
[1748438610065,0.00562556,2664.2,2664.1,0.75035]
[1748438610264,0.00562556,2664.2,2664.1,1.39625]
[1748438610667,0.00562556,2664.2,2664.1,2.68565]
[1748438612074,0.00562556,2664.2,2664.1,4.06353583]
[1748438615373,0.75594556,2664.2,2664.1,3.41763583]
[1748438615570,0.75594556,2664.2,2664.0,1.37788583]
[1748438615775,2.72235,2664.1,2664.0,2.12823583]
[1748438616079,2.72235,2664.1,2664.0,2.04195]
[1748438617077,2.72235,2664.1,2664.0,3.41983583]
[1748438617279,0.638,2664.1,2664.0,3.41983583]
[1748438618575,1.38835,2664.1,2664.0,3.41983583]
[1748438619079,0.75038,2664.0,2663.9,0.75039]
[1748438619281,1.40448,2664.0,2663.9,0.75039]
[1748438619482,2.72638,2664.0,2663.9,0.75039]
[1748438624381,1.976,2664.0,2663.9,0.75039]
[1748438626081,2.72638,2664.0,2663.9,0.75039]
[1748438627886,0.6541,2664.0,2663.9,0.75039]
[1748438628386,0.6541,2664.0,2663.9,1.41539]
[1748438628889,0.6541,2664.0,2663.9,2.74779]
[1748438629379,0.638,2664.1,2664.0,0.75038]
[1748438629581,0.638,2664.1,2664.0,2.08278]
[1748438629884,0.00562556,2664.2,2664.1,0.75035]
[1748438630084,0.00562556,2664.2,2664.1,2.08275]
[1748438630277,0.00562556,2664.2,2664.1,24.28675]
[1748438630879,0.00562556,2664.2,2664.1,2.08275]
[1748438631485,0.75038,2664.1,2664.0,0.75035]
[1748438631679,2.09018,2664.1,2664.0,0.75035]
[1748438632483,0.75038,2664.0,2663.9,2.07069]
[1748438632684,0.75043,2663.8,2663.7,2.47155053]
[1748438632983,0.75043,2663.8,2663.7,0.75045]
[1748438633884,0.75042,2663.9,2663.8,0.75041]
[1748438634094,1.24632556,2664.2,2663.8,1.87607]
[1748438634284,1.24632556,2664.2,2664.1,0.75035]
[1748438634487,1.87539,2664.8,2664.6,0.75021]
[1748438634488,3.2078,2664.7,2664.6,0.75021]
[1748438634785,5.21898,2664.7,2664.6,0.75021]
[1748438635177,4.4688,2664.7,2664.6,0.75021]
[1748438635883,1.261,2664.7,2664.6,0.75021]
[1748438636082,0.00562556,2664.9,2664.8,0.75015]
[1748438636284,1.90421889,2665.3,2665.2,0.75004]
[1748438636591,1.893,2665.8,2665.7,0.7499]
[1748438636787,1.893,2665.8,2665.3,1.87504]
[1748438636788,2.64287,2665.8,2665.6,0.7499]
[1748438636982,2.64287,2665.8,2665.7,0.7499]
[1748438637185,2.64289,2665.8,2665.6,1.3435]
[1748438637493,2.64289,2665.8,2665.7,0.7499]
[1748438637795,1.893,2665.8,2665.7,0.7499]
[1748438638085,5.56e-06,2666.0,2665.9,0.74984]
[1748438638481,5.56e-06,2666.0,2665.9,8.95764]
[1748438638888,5.56e-06,2666.0,2665.9,31.16264]
[1748438639992,0.74951,2667.1,2666.9,0.74955]
[1748438640192,0.74951,2667.1,2666.3,1.87428]
[1748438640193,0.74951,2667.1,2667.0,1.275]
[1748438640490,0.6333,2667.3,2667.2,0.74948]
[1748438640788,0.74945,2667.3,2667.0,5.23231]
[1748438640994,0.74951,2667.1,2667.0,0.00562556]
[1748438641480,7.66821,2667.1,2667.0,0.00562556]
[1748438641679,2.66821,2667.1,2667.0,0.00562556]
[1748438641882,0.639,2667.1,2667.0,0.00562556]
[1748438642090,2.66821,2667.1,2667.0,0.00562556]
[1748438642489,0.62342556,2667.5,2667.0,0.00562556]
[1748438642690,1.90312556,2667.5,2667.2,3.95727]
[1748438642896,0.00562556,2667.5,2667.4,0.74942]
[1748438643092,0.00562556,2667.5,2667.4,2.05142]
[1748438643396,0.74897,2669.0,2667.5,1.87343]
[1748438643598,3.679,2669.1,2667.6,18.667]
[1748438643785,3.2078,2668.6,2667.9,3.2078]
[1748438644095,1.2533,2668.5,2668.3,3.2078]
[1748438644283,0.74906,2668.7,2668.3,3.95697]
[1748438644590,0.75469556,2668.7,2668.4,1.3299]
[1748438644786,0.00562556,2668.7,2668.6,0.74908]
[1748438644989,0.00562556,2668.7,2668.4,1.3299]
[1748438645191,0.00562556,2668.7,2668.6,0.74908]
[1748438645689,0.00562556,2668.7,2668.6,3.95688]
[1748438645891,0.00562556,2668.7,2668.6,10.28678]
[1748438646289,0.00562556,2668.7,2668.6,5.28678]
[1748438646589,0.00562556,2668.7,2668.6,10.28678]
[1748438646793,0.00562556,2668.7,2668.6,5.28678]
[1748438646985,0.00562556,2668.7,2668.6,4.5377]
[1748438647387,5.56e-06,2668.7,2668.6,14.09878]
[1748438649484,5.56e-06,2668.7,2668.6,10.28678]
[1748438649690,5.56e-06,2668.7,2668.6,8.3477]
[1748438649897,5.56e-06,2668.7,2668.6,9.09678]
[1748438650594,5.56e-06,2668.7,2668.6,4.5377]
[1748438650891,5.00000556,2668.7,2668.3,3.2078]
[1748438651085,1.2456,2668.6,2668.1,0.00562556]
[1748438651290,4.4534,2668.6,2668.1,0.00562556]
[1748438651493,0.74911,2668.5,2668.1,0.75483556]
[1748438651695,0.74913,2668.5,2668.2,1.2978]
[1748438651892,0.74916,2668.4,2668.2,1.2978]
[1748438652092,1.2456,2668.6,2668.2,3.2078]
[1748438652297,1.99477,2668.3,2668.2,3.2078]
[1748438652798,1.99477,2668.3,2668.1,0.00562556]
[1748438652991,0.7492,2668.2,2668.1,0.00562556]
[1748438653196,2.0661,2668.2,2668.1,0.00562556]
[1748438653396,1.3169,2668.2,2668.1,0.00562556]
[1748438653896,0.00627358,2668.6,2668.1,0.00562556]
[1748438654099,0.00627358,2668.6,2668.5,3.2078]
[1748438655404,2.07226358,2668.6,2668.5,3.2078]
[1748438655590,1.32317358,2668.6,2668.2,1.3429]
[1748438655790,1.32317358,2668.6,2668.1,3.21342556]
[1748438655791,1.32317358,2668.6,2668.1,0.00562556]
[1748438656097,0.7492,2668.2,2668.1,0.00562556]
[1748438656695,1.32317358,2668.6,2668.1,0.00562556]
[1748438656894,1.32317358,2668.6,2668.5,3.95691]
[1748438657291,0.00627358,2668.6,2668.5,3.95691]
[1748438657998,0.00627358,2668.6,2668.5,21.42891]
[1748438658405,5.56e-06,2668.7,2668.6,0.74908]
[1748438658599,5.56e-06,2668.7,2668.6,5.79118]
[1748438658794,5.56e-06,2668.7,2668.6,23.33018]
[1748438659701,5.56e-06,2668.7,2668.6,28.33018]
[1748438664105,5.56e-06,2668.7,2668.6,23.33018]
[1748438664503,5.56e-06,2668.7,2668.6,28.33018]
[1748438664895,5.56e-06,2668.7,2668.6,1.98218]
[1748438665101,5.56e-06,2668.7,2668.6,0.74908]
[1748438665307,5.56e-06,2668.7,2668.4,0.74912]
[1748438665603,0.7491,2668.6,2668.5,0.7491]
[1748438665805,1.9564,2668.6,2668.2,3.2078]
[1748438665998,1.9564,2668.6,2668.2,3.95699]
[1748438666209,0.74916,2668.4,2668.3,0.74917]
[1748438666906,0.74917,2668.3,2668.2,3.95698]
[1748438667106,0.74917,2668.3,2668.2,3.2078]
[1748438667808,0.74917,2668.3,2668.2,3.95698]
[1748438668300,0.74916,2668.4,2668.3,0.74916]
[1748438668500,1.9564,2668.6,2668.5,0.74911]
[1748438668703,0.6338,2668.6,2668.5,0.74911]
[1748438670106,0.6338,2668.6,2668.5,3.95691]
[1748438670408,1.38288,2668.6,2668.5,3.95691]
[1748438671203,1.38288,2668.6,2668.5,0.74911]
[1748438671411,0.74916,2668.4,2668.3,0.74916]
[1748438671905,0.74917,2668.3,2668.2,3.95698]
[1748438672409,0.74916,2668.4,2668.3,0.74916]
[1748438672610,0.6667,2668.5,2668.2,3.2078]
[1748438672810,0.74916,2668.4,2668.3,0.74914]
[1748438674205,0.74917,2668.3,2668.2,3.95698]
[1748438675107,0.74916,2668.4,2668.3,0.74915]
[1748438675309,0.74917,2668.3,2668.2,3.95698]
[1748438675707,0.74916,2668.4,2668.3,0.74915]
[1748438675904,0.7492,2668.2,2668.1,0.00562556]
[1748438676100,0.74934,2667.7,2667.6,3.2078]
[1748438676407,1.87335,2667.7,2667.3,0.74943]
[1748438676613,0.74944,2667.4,2667.3,0.74943]
[1748438676813,0.74945,2667.3,2667.2,3.2078]
[1748438677111,0.74945,2667.3,2667.2,3.95728]
[1748438677411,0.74945,2667.3,2667.2,3.2078]
[1748438677612,3.17125,2667.6,2667.2,0.74946]
[1748438677809,0.74946,2667.3,2667.2,0.74946]
[1748438678112,0.74944,2667.4,2667.3,0.74945]
[1748438678311,0.74945,2667.3,2667.2,0.74946]
[1748438679105,0.74944,2667.4,2667.3,0.74945]
[1748438679310,0.74941,2667.5,2667.4,0.7494]
[1748438679513,2.04718,2667.6,2667.4,0.7494]
[1748438680314,1.2567,2667.5,2667.4,0.7494]
[1748438680515,2.00609,2667.5,2667.4,0.7494]
[1748438682314,1.2567,2667.5,2667.4,0.7494]
[1748438682615,2.00609,2667.5,2667.4,3.2078]
[1748438682806,0.74942,2667.4,2667.3,0.74944]
[1748438683009,2.02702,2667.4,2667.3,0.74944]
[1748438683515,1.2776,2667.4,2667.0,3.21342556]
[1748438684013,1.2776,2667.4,2667.3,3.95725]
[1748438684217,3.856,2668.1,2667.5,0.74939]
[1748438684412,2.73125,2668.0,2667.9,0.74928]
[1748438684715,1.982,2668.0,2667.9,0.74928]
[1748438685112,0.6665,2668.0,2667.9,0.74928]
[1748438685418,1.3155,2668.2,2668.1,0.74923]
[1748438685615,0.6154,2668.4,2668.3,0.74917]
[1748438686312,1.9309,2668.4,2668.3,0.74917]
[1748438686511,2.68004,2668.4,2668.3,0.74917]
[1748438686817,1.9309,2668.4,2668.3,0.74917]
[1748438687319,1.9309,2668.4,2668.2,2.09048]
[1748438687516,1.9309,2668.4,2668.3,0.74917]
[1748438688215,0.74917,2668.3,2668.2,0.74919]
[1748438688413,2.07897,2668.3,2668.2,0.74919]
[1748438690118,1.3298,2668.3,2668.2,0.74919]
[1748438690312,1.3298,2668.3,2668.2,2.08509]
[1748438690615,1.36454,2668.4,2668.3,0.74917]
[1748438690813,2.71374,2668.4,2668.3,0.74917]
[1748438691216,1.9646,2668.4,2668.3,0.74917]
[1748438691512,2.71374,2668.4,2668.3,0.74917]
[1748438691714,0.6665,2668.5,2668.3,0.74917]
[1748438691715,3.20780556,2668.7,2668.6,0.74908]
[1748438691916,5.56e-06,2668.7,2668.6,0.74908]
[1748438692714,0.74906556,2668.7,2668.6,0.74908]
[1748438693416,0.74911,2668.5,2668.4,3.96254556]
[1748438693622,0.74911,2668.5,2668.4,5.25614556]
[1748438693919,1.9792,2668.6,2668.5,0.74911]
[1748438694425,1.2301,2668.6,2668.5,2.04271]
[1748438696918,5.56e-06,2668.7,2668.6,0.74908]
[1748438697420,8.20780556,2668.7,2667.7,1.34773633]
[1748438697619,0.74934,2667.7,2667.6,1.34773633]
[1748438697821,0.74945,2667.3,2667.2,1.68491476]
[1748438698020,13.93645,2667.3,2666.8,1.2447]
[1748438698216,13.93645,2667.3,2666.2,22.60015]
[1748438698217,3.2078,2666.9,2666.2,3.2078]
[1748438698421,0.74963,2666.7,2666.5,0.74966]
[1748438698619,3.855,2666.7,2666.6,0.74965]
[1748438700125,5.1855,2666.7,2666.6,0.74965]
[1748438700422,0.7497,2666.4,2666.3,0.00562556]
[1748438700627,3.9575,2666.4,2666.3,0.00562556]
[1748438701320,8.9575,2666.4,2666.3,0.00562556]
[1748438701830,8.2078,2666.4,2665.7,1.3578]
[1748438702023,3.2078,2666.0,2665.7,1.3578]
[1748438702220,3.856,2666.2,2665.7,1.3578]
[1748438702422,3.856,2666.2,2666.1,0.74977]
[1748438702624,0.7498,2666.1,2665.9,0.75545556]
[1748438702817,1.9746,2666.1,2665.9,0.75545556]
[1748438703120,3.2078,2666.3,2666.2,0.74976]
[1748438703326,3.2078,2666.3,2665.9,0.00562556]
[1748438703327,3.857,2666.4,2666.0,1.3379]
[1748438703528,3.857,2666.4,2666.3,0.74973]
[1748438703728,3.857,2666.4,2666.0,1.3379]
[1748438703729,4.4326,2666.6,2666.5,0.74967]
[1748438703925,8.2896,2666.6,2666.0,3.21239]
[1748438704122,5.83145,2666.6,2666.4,0.74968]
[1748438704622,5.0818,2666.6,2666.5,0.74967]
[1748438705127,1.2248,2666.6,2666.5,0.74967]
[1748438705323,3.86262556,2666.8,2666.7,0.74962]
[1748438706330,0.00562556,2666.8,2666.7,0.74962]
[1748438706925,0.00562556,2666.8,2666.7,2.05332]
[1748438709026,3.2078,2667.7,2666.7,1.3037]
[1748438709328,5.90847,2667.6,2667.5,0.74937]
[1748438709523,5.1591,2667.6,2667.5,0.74937]
[1748438709726,5.90847,2667.6,2667.5,0.74939]
[1748438710126,5.1591,2667.6,2667.5,0.74939]
[1748438710326,5.1591,2667.6,2667.3,0.00562556]
[1748438710527,5.1591,2667.6,2667.5,0.74939]
[1748438711030,0.00562556,2667.8,2667.7,0.74934]
[1748438713231,0.75495556,2667.8,2667.7,0.74934]
[1748438714435,0.00562556,2667.8,2667.7,0.74934]
[1748438714734,1.23312556,2667.8,2667.7,0.74934]
[1748438716435,1.23312556,2667.8,2667.6,0.74935]
[1748438716635,1.23312556,2667.8,2667.5,1.2385]
[1748438716636,1.23312556,2667.8,2667.7,0.74934]
[1748438717736,0.00562556,2667.8,2667.7,0.74934]
[1748438718335,0.8880648,2668.6,2668.5,0.74911]
[1748438718535,5.5191448,2668.6,2668.5,0.74911]
[1748438719333,0.8880648,2668.6,2668.5,0.74911]
[1748438720235,2.2245648,2668.6,2668.5,0.74911]
[1748438722234,0.8880648,2668.6,2668.5,0.74911]
[1748438722432,0.8880648,2668.6,2668.5,3.95691]
[1748438723843,0.28542847,2668.6,2668.5,8.95691]
[1748438724340,0.28542847,2668.6,2668.5,3.95691]
[1748438724537,0.28542847,2668.6,2668.5,8.95691]
[1748438725436,8.47e-06,2668.6,2668.5,8.95691]
[1748438725643,4.03e-06,2668.8,2668.7,0.74906]
[1748438725841,4.03e-06,2668.8,2668.7,4.63006]
[1748438726043,4.03e-06,2668.8,2668.7,9.63006]
[1748438726246,4.03e-06,2668.8,2668.7,10.28556]
[1748438727639,3.2078,2670.6,2670.5,0.74855]
[1748438728340,1.3566,2670.8,2670.7,0.7485]
[1748438728744,1.27282556,2671.0,2670.9,0.74844]
[1748438728944,3.37783556,2671.0,2670.9,0.74844]
[1748438729243,2.62942556,2671.0,2670.7,1.2646]
[1748438729432,0.7485,2670.7,2670.6,3.95631]
[1748438729637,0.74852,2670.6,2670.5,0.00562556]
[1748438729837,0.74866,2670.2,2669.8,3.2078]
[1748438730138,1.2927,2670.1,2670.0,0.74869]
[1748438730841,2.04136,2670.1,2670.0,0.74869]
[1748438731040,1.2927,2670.1,2670.0,0.74869]
[1748438731340,1.2927,2670.1,2669.8,3.21342556]
[1748438731550,0.74871,2670.0,2669.8,3.96215556]
[1748438731747,1.2927,2669.9,2669.8,3.96215556]
[1748438732335,0.6549,2670.1,2670.0,0.74869]
[1748438733038,2.70346,2670.1,2670.0,0.74869]
[1748438733647,1.9548,2670.1,2670.0,0.74869]
[1748438734046,2.70346,2670.1,2670.0,0.74869]
[1748438734450,1.9548,2670.1,2669.8,3.21342556]
[1748438734646,0.74872,2669.9,2669.8,3.21342556]
[1748438735438,0.74872,2669.9,2669.8,3.96217556]
[1748438735952,0.74872,2669.9,2669.8,3.21342556]
[1748438736146,0.74872,2669.9,2669.8,3.28806464]
[1748438737443,1.2999,2670.1,2669.9,0.74871]
[1748438737444,0.74872,2670.0,2669.9,0.74871]
[1748438738048,0.74872,2669.9,2669.8,0.08026464]
[1748438738246,2.08842,2669.9,2669.8,0.08026464]
[1748438742955,5.96342,2669.9,2669.8,0.08026464]
[1748438746059,10.96342,2669.9,2669.8,0.08026464]
[1748438746757,5.96342,2669.9,2669.8,0.08026464]
[1748438747950,5.2147,2669.9,2669.4,1.2244]
[1748438748154,5.2147,2669.9,2669.3,3.2078]
[1748438748155,0.74886,2669.4,2669.3,3.2078]
[1748438748353,0.74894,2669.1,2669.0,1.248]
[1748438749451,0.74894,2669.1,2669.0,1.99697]
[1748438750053,0.74894,2669.1,2669.0,1.248]
[1748438751154,0.74897,2669.0,2668.9,3.2078]
[1748438751361,2.01297,2669.0,2668.9,3.2078]
[1748438753959,2.01297,2669.0,2668.9,3.9568]
[1748438754157,1.264,2669.0,2668.9,4.4908]
[1748438754351,1.8723,2669.2,2668.9,4.4908]
[1748438754552,0.74897,2669.0,2668.9,5.23979]
[1748438754750,0.74897,2669.0,2668.9,1.283]
[1748438755057,0.749,2668.9,2668.8,5.56e-06]
[1748438755255,2.667,2668.9,2668.8,5.56e-06]
[1748438755463,7.667,2668.9,2668.8,5.56e-06]
[1748438755663,48.467,2668.9,2668.8,5.56e-06]
[1748438758467,43.467,2668.9,2668.8,5.56e-06]
[1748438759065,46.6748,2668.9,2668.8,5.56e-06]
[1748438759768,43.467,2668.9,2668.8,5.56e-06]
[1748438760063,46.6748,2668.9,2668.8,5.56e-06]
[1748438760861,51.6748,2668.9,2668.8,5.56e-06]
[1748438764172,51.6748,2668.9,2668.8,5.56e-06]
[1748438764463,0.74928,2667.9,2667.8,1.2926]
[1748438765667,3.2078,2668.2,2667.8,1.2926]
[1748438765864,0.74926,2668.1,2668.0,0.74924]
[1748438766160,0.74927,2668.1,2668.0,0.74924]
[1748438769570,6.40673,2668.5,2667.9,3.2078]
[1748438769869,6.40673,2668.5,2668.0,2.07425]
[1748438769870,0.74922,2668.2,2668.0,2.07425]
[1748438770060,0.74922,2668.2,2668.1,0.74922]
[1748438774662,0.81709,2668.3,2668.2,0.7492]
[1748438775065,0.0679,2668.3,2668.2,0.7492]
[1748438775474,3.95673,2669.2,2668.2,8.2078]
[1748438775670,0.00562556,2669.3,2669.2,0.74892]
[1748438776777,0.7487,2670.0,2669.4,1.87216]
[1748438776969,0.7487,2670.0,2669.9,0.74872]
[1748438777368,0.7487,2670.0,2669.8,0.74873]
[1748438777677,0.7487,2670.0,2669.9,3.95652]
[1748438777863,0.00562556,2670.2,2670.1,0.74866]
[1748438778173,0.00562556,2670.2,2670.1,4.57166]
[1748438778367,0.00562556,2670.2,2670.1,9.57166]
[1748438779069,3.2078,2671.1,2670.3,1.87153]
[1748438779269,0.74843,2671.0,2670.6,3.2078]
[1748438779471,0.74841,2671.0,2670.8,0.74845]
[1748438779870,0.00562556,2671.2,2671.0,0.74841]
[1748438780073,0.00562556,2671.2,2671.1,0.74838]
[1748438780475,0.00562556,2671.2,2670.9,3.2078]
[1748438780975,0.00562556,2671.2,2671.0,0.74841]
[1748438781179,0.00562556,2671.2,2671.1,0.74838]
[1748438781774,0.00562556,2671.2,2671.0,0.74839]
[1748438782176,0.75398556,2671.2,2671.1,1.264]
[1748438783375,0.00562556,2671.2,2671.1,1.264]
[1748438783570,0.00562556,2671.2,2671.1,2.01238]
[1748438783965,0.00562556,2671.2,2671.1,7.01238]
[1748438784369,0.00562556,2671.2,2671.1,2.01238]
[1748438784575,0.00562556,2671.2,2671.1,7.01238]
[1748438784776,0.00562556,2671.2,2671.1,19.45438]
[1748438784969,0.00562556,2671.2,2671.1,1.264]
[1748438785169,0.75398556,2671.2,2671.1,1.264]
[1748438787078,0.00562556,2671.2,2671.1,2.01238]
[1748438788374,0.00562556,2671.2,2671.1,7.01238]
[1748438788579,0.74812,2672.1,2671.1,6.264]
[1748438788875,3.2078,2672.2,2671.7,1.87055]
[1748438789182,3.2078,2672.2,2672.1,0.7481]
[1748438789977,0.74806,2672.3,2672.2,0.74808]
[1748438790182,0.7481,2672.1,2672.0,0.00561482]
[1748438790783,0.7481,2672.1,2672.0,0.75374482]
[1748438791175,1.27301482,2672.4,2672.1,0.7481]
[1748438791176,0.74809,2672.2,2672.1,0.7481]
[1748438791470,1.27301482,2672.4,2672.1,1.2539]
[1748438791879,1.27301482,2672.4,2672.3,0.74805]
[1748438792076,2.02103482,2672.4,2672.3,0.74805]
[1748438792277,1.27301482,2672.4,2672.3,0.74805]
[1748438792478,2.02103482,2672.4,2672.3,0.74805]
[1748438792676,0.74806,2672.3,2672.2,0.74806]
[1748438792875,2.01546,2672.3,2672.2,0.74806]
[1748438793086,1.2674,2672.3,2672.2,0.74806]
[1748438793282,0.75363482,2672.4,2672.3,0.74805]
[1748438793585,0.00561482,2672.4,2672.3,0.74805]
[1748438795085,0.75363482,2672.4,2672.3,0.74805]
[1748438795286,0.00561482,2672.4,2672.3,0.74805]
[1748438795887,2.00076482,2672.4,2672.3,0.82268908]
[1748438796585,1.25271482,2672.4,2672.3,0.82268908]
[1748438798491,0.00561482,2672.4,2672.3,0.82268908]
[1748438798687,0.00561482,2672.4,2672.3,2.10608908]
[1748438799688,0.00561482,2672.4,2672.3,5.93608908]
[1748438801985,0.00561482,2672.4,2672.3,28.35108908]
[1748438802184,0.00561482,2672.4,2672.3,28.96238908]
[1748438802785,4.82e-06,2672.4,2672.3,28.96238908]
[1748438803380,4.82e-06,2672.4,2672.3,28.97138908]
[1748438804382,0.00613381,2672.4,2672.3,2.10608908]
[1748438804587,0.75415381,2672.4,2672.3,0.07463908]
[1748438804790,0.75415381,2672.4,2672.3,0.82268908]
[1748438805293,0.00613381,2672.4,2672.3,0.82268908]
[1748438805682,0.62343381,2672.4,2672.3,0.82268908]
[1748438805886,1.37145381,2672.4,2672.3,0.82268908]
[1748438806490,0.62343381,2672.4,2672.3,0.82268908]